bitfinex-derivatives/quotes_BTCF0:USTF0_20250630
["timestamp","ask_amount","ask_price","bid_price","bid_amount"]
[1751291268800,0.42526507,107660.0,107650.0,0.72712902]
[1751291270004,0.74146178,107660.0,107650.0,0.01724902]
[1751291270204,1.10226178,107660.0,107650.0,0.57619292]
[1751291270405,1.10226178,107660.0,107650.0,0.00199292]
[1751291270605,1.10226178,107660.0,107650.0,0.57615292]
[1751291271007,1.16226178,107660.0,107650.0,0.57615292]
[1751291271211,1.18518243,107660.0,107650.0,0.00199292]
[1751291271507,0.1857773,107630.0,107620.0,0.9881356]
[1751291271809,0.32491019,107630.0,107620.0,0.89538627]
[1751291272102,0.78141019,107630.0,107620.0,0.39537583]
[1751291272302,0.78141019,107630.0,107620.0,0.96957583]
[1751291272506,0.78141019,107630.0,107620.0,1.28577254]
[1751291272699,0.78141019,107630.0,107620.0,1.21162298]
[1751291272904,0.78141019,107630.0,107620.0,0.89542627]
[1751291273302,0.32891019,107630.0,107620.0,1.21787121]
[1751291273606,0.32891019,107630.0,107620.0,1.71532077]
[1751291274708,0.32891019,107630.0,107620.0,1.64117121]
[1751291275912,0.32891019,107630.0,107620.0,1.69575816]
[1751291280306,0.32891019,107630.0,107620.0,1.3249745]
[1751291280614,0.32891019,107630.0,107620.0,1.78391186]
[1751291283208,0.32891019,107630.0,107620.0,1.4131282]
[1751291283403,0.32891019,107630.0,107620.0,1.78391186]
[1751291286608,0.32891019,107630.0,107620.0,1.78392596]
[1751291287616,0.32891019,107630.0,107620.0,1.76990772]
[1751291288513,0.32891019,107630.0,107620.0,1.19570772]
[1751291288816,0.32891019,107630.0,107620.0,1.42314277]
[1751291289212,0.39241019,107630.0,107620.0,1.42314277]
[1751291289515,0.39241019,107630.0,107620.0,1.78394277]
[1751291291112,0.75321019,107630.0,107620.0,0.98977911]
[1751291291317,0.75321019,107630.0,107620.0,0.98977891]
[1751291291620,0.78411019,107630.0,107620.0,0.98977891]
[1751291292618,0.78411019,107630.0,107620.0,0.72983505]
[1751291293211,0.78411019,107630.0,107620.0,0.91562935]
[1751291293518,0.78411019,107630.0,107620.0,0.20582935]
[1751291293721,0.78411019,107630.0,107620.0,0.91562935]
[1751291293921,1.15489385,107630.0,107620.0,0.15563505]
[1751291294126,0.78411019,107630.0,107620.0,0.72983505]
[1751291295918,1.10063214,107630.0,107620.0,0.72983505]
[1751291296316,0.78411019,107630.0,107620.0,0.72983505]
[1751291298822,0.78411019,107630.0,107620.0,0.72983505]
[1751291299319,0.78411019,107630.0,107620.0,0.91562925]
[1751291299720,0.39241019,107630.0,107620.0,1.30630076]
[1751291299932,0.39241019,107630.0,107620.0,1.76150076]
[1751291299933,0.32891019,107630.0,107620.0,1.76150076]
[1751291303326,0.32891019,107630.0,107620.0,1.76583145]
[1751291303626,0.32891019,107630.0,107620.0,1.78121958]
[1751291303627,0.19076982,107630.0,107620.0,1.78121958]
[1751291303822,0.00499292,107630.0,107620.0,1.78121958]
[1751291304418,0.19076982,107630.0,107620.0,1.78121958]
[1751291304618,0.00499292,107630.0,107620.0,1.78121958]
[1751291305128,0.00499292,107630.0,107620.0,1.88121958]
[1751291305316,0.01499292,107630.0,107620.0,1.88121958]
[1751291306725,0.20076982,107630.0,107620.0,1.88121958]
[1751291309528,0.01499292,107630.0,107620.0,1.88121958]
[1751291312835,0.00499292,107630.0,107620.0,1.8814614]
[1751291313236,0.2331711,107660.0,107650.0,0.1857424]
[1751291313437,0.12913997,107660.0,107650.0,1.64792342]
[1751291313628,0.12913997,107660.0,107650.0,1.74232342]
[1751291313929,0.12913997,107660.0,107650.0,1.84232342]
[1751291314125,0.2785547,107680.0,107670.0,0.1857079]
[1751291314320,0.33127892,107680.0,107670.0,1.57270985]
[1751291314535,0.33127892,107680.0,107670.0,1.66860631]
[1751291315427,0.33127892,107680.0,107670.0,1.68309043]
[1751291315726,0.04,107680.0,107670.0,2.14489043]
[1751291316127,0.001,107690.0,107680.0,0.1856907]
[1751291316325,0.131,107690.0,107680.0,2.09231872]
[1751291316526,0.131,107690.0,107680.0,2.09281518]
[1751291316735,0.131,107690.0,107680.0,2.19281518]
[1751291316927,0.131,107690.0,107680.0,2.20397055]
[1751291317130,0.13,107690.0,107680.0,2.40492771]
[1751291317331,0.1856567,107700.0,107690.0,0.1856734]
[1751291317635,0.3056567,107700.0,107690.0,1.71923593]
[1751291318132,0.12,107700.0,107690.0,1.70475181]
[1751291319035,0.13,107700.0,107690.0,1.70575181]
[1751291319833,0.13,107700.0,107690.0,1.75947673]
[1751291320531,0.13,107700.0,107690.0,2.1297236]
[1751291320836,0.01,107700.0,107690.0,1.75947673]
[1751291321036,0.01,107700.0,107690.0,2.3154356]
[1751291321227,0.01,107700.0,107690.0,2.5654356]
[1751291322038,0.001,107720.0,107710.0,0.185639]
[1751291322337,0.001,107720.0,107710.0,2.08696587]
[1751291322640,0.001,107720.0,107710.0,2.12066233]
[1751291323529,1e-07,107720.0,107710.0,2.30633433]
[1751291323837,0.2473724,107750.0,107740.0,0.1855873]
[1751291323838,0.3401597,107750.0,107740.0,0.1855873]
[1751291324038,0.4601597,107750.0,107740.0,1.26515417]
[1751291324332,0.4601597,107750.0,107740.0,0.89540376]
[1751291324736,0.4601597,107750.0,107740.0,1.26565063]
[1751291325139,0.4601597,107750.0,107740.0,0.89540376]
[1751291325333,0.8209597,107750.0,107740.0,0.18608376]
[1751291325540,0.8209597,107750.0,107740.0,0.89540376]
[1751291325838,0.4601597,107750.0,107740.0,0.89540376]
[1751291327036,0.4137659,107750.0,107740.0,1.62645063]
[1751291327540,0.4337659,107750.0,107740.0,1.62845063]
[1751291328540,0.4337659,107750.0,107740.0,1.70184089]
[1751291328742,0.4337659,107750.0,107740.0,1.71287661]
[1751291330046,0.141,107750.0,107740.0,1.71287661]
[1751291330342,0.141,107750.0,107740.0,1.74577661]
[1751291330343,0.3265701,107750.0,107740.0,1.74577661]
[1751291330939,0.3918701,107750.0,107740.0,1.74577661]
[1751291331240,0.3848701,107750.0,107740.0,1.74577661]
[1751291331741,0.3848701,107750.0,107740.0,1.71287661]
[1751291331944,0.3848701,107750.0,107740.0,1.13903661]
[1751291332143,0.3848701,107750.0,107740.0,1.71263661]
[1751291332831,0.3848701,107750.0,107740.0,1.00355661]
[1751291333036,0.3848701,107750.0,107740.0,1.71259661]
[1751291333239,0.1993,107750.0,107740.0,1.71259661]
[1751291333544,0.1662,107750.0,107740.0,1.81259661]
[1751291333741,0.134,107750.0,107740.0,1.87699661]
[1751291333940,0.014,107750.0,107740.0,1.87699661]
[1751291335145,0.014,107750.0,107740.0,1.16795661]
[1751291335449,0.014,107750.0,107740.0,1.50670974]
[1751291335649,0.2095701,107750.0,107740.0,1.90975661]
[1751291335954,0.024,107750.0,107740.0,1.90975661]
[1751291336554,0.2095702,107750.0,107740.0,1.90975661]
[1751291336953,0.2729702,107750.0,107740.0,1.90975661]
[1751291337255,0.2629702,107750.0,107740.0,1.90975661]
[1751291337449,0.2629702,107750.0,107740.0,1.90967661]
[1751291338153,0.2629702,107750.0,107740.0,1.20075661]
[1751291338354,0.2629702,107750.0,107740.0,1.90959661]
[1751291339253,0.014,107750.0,107740.0,1.90959661]
[1751291343350,0.1995702,107750.0,107740.0,1.90959661]
[1751291343553,0.1995702,107750.0,107740.0,1.20075661]
[1751291343756,1.17874107,107750.0,107740.0,0.07588672]
[1751291343959,1.46104107,107750.0,107740.0,0.57669646]
[1751291344150,1.46104107,107750.0,107740.0,0.00249646]
[1751291344358,1.46104107,107750.0,107740.0,0.47733646]
[1751291344656,0.1855874,107740.0,107730.0,0.13536]
[1751291344855,0.1856047,107730.0,107720.0,0.20073231]
[1751291345153,0.2161047,107730.0,107720.0,0.89566341]
[1751291345358,0.2161047,107730.0,107720.0,0.89570341]
[1751291346361,0.2161047,107730.0,107720.0,0.89595164]
[1751291346555,0.2161047,107730.0,107720.0,0.97203761]
[1751291347462,0.2915047,107730.0,107720.0,0.97403761]
[1751291348166,0.2915047,107730.0,107720.0,1.34428448]
[1751291348361,0.2805047,107730.0,107720.0,1.34228448]
[1751291348664,0.2945047,107730.0,107720.0,0.97403761]
[1751291352358,0.2945047,107730.0,107720.0,0.21381571]
[1751291352569,0.6553047,107730.0,107720.0,0.71253797]
[1751291352760,0.67763497,107730.0,107720.0,0.71253797]
[1751291352956,0.31683497,107730.0,107720.0,0.18823987]
[1751291353158,0.2301047,107730.0,107720.0,1.62924674]
[1751291353358,0.2301047,107730.0,107720.0,1.28899987]
[1751291353658,0.2301047,107730.0,107720.0,1.65924674]
[1751291353856,0.2301047,107730.0,107720.0,1.28899987]
[1751291354053,0.61323281,107730.0,107720.0,0.92819987]
[1751291354356,0.64353281,107730.0,107720.0,0.92819987]
[1751291355563,0.28273281,107730.0,107720.0,0.92819987]
[1751291355757,0.25243281,107730.0,107720.0,1.7338728]
[1751291355958,0.2301047,107730.0,107720.0,1.7338728]
[1751291356263,0.2301047,107730.0,107720.0,1.00282593]
[1751291356762,0.2301047,107730.0,107720.0,0.78720403]
[1751291356962,0.99415157,107730.0,107720.0,0.00249646]
[1751291357152,1.17980757,107730.0,107720.0,0.00249646]
[1751291357353,0.1856219,107720.0,107710.0,1.51849646]
[1751291357563,1.01396877,107720.0,107710.0,1.51812468]
[1751291357764,0.6437219,107720.0,107710.0,1.51812468]
[1751291357954,0.6437219,107720.0,107710.0,0.94180468]
[1751291358262,1.19964077,107720.0,107710.0,1.51820468]
[1751291358766,0.6547219,107720.0,107710.0,1.52020468]
[1751291359364,0.67702583,107720.0,107710.0,1.52020468]
[1751291359957,0.6547219,107720.0,107710.0,1.52020468]
[1751291361261,1.02496877,107720.0,107710.0,1.52020468]
[1751291362766,0.6547219,107720.0,107710.0,1.51972468]
[1751291363368,1.1547219,107720.0,107710.0,1.51972468]
[1751291364470,1.52496877,107720.0,107710.0,1.51972468]
[1751291364865,1.52496877,107720.0,107690.0,0.62283319]
[1751291364866,0.1856563,107700.0,107690.0,0.62283319]
[1751291365161,0.1856563,107700.0,107690.0,0.78793399]
[1751291365361,0.2475563,107700.0,107690.0,0.78789399]
[1751291366272,0.2475563,107700.0,107690.0,0.71792]
[1751291366273,0.97960317,107700.0,107690.0,0.71792]
[1751291366464,1.19651518,107700.0,107690.0,0.58248]
[1751291367271,1.19651518,107700.0,107690.0,0.007]
[1751291367473,1.19651518,107700.0,107690.0,0.58252]
[1751291367673,1.69651518,107700.0,107690.0,0.58252]
[1751291368065,1.69551518,107700.0,107690.0,0.57552]
[1751291368261,1.71151518,107700.0,107690.0,0.57652]
[1751291368868,1.71151518,107700.0,107690.0,1e-07]
[1751291370268,2.28663518,107700.0,107690.0,1e-07]
[1751291370468,2.30883827,107700.0,107690.0,1e-07]
[1751291371677,2.56972874,107700.0,107690.0,1e-07]
[1751291372467,0.1856736,107690.0,107680.0,3e-08]
[1751291372667,0.61872047,107690.0,107680.0,3e-08]
[1751291372868,0.1857253,107660.0,107650.0,0.72838892]
[1751291373079,0.91677217,107660.0,107650.0,0.69748892]
[1751291373274,0.94857217,107660.0,107650.0,0.15262892]
[1751291373579,0.5465253,107660.0,107650.0,0.15262892]
[1751291373772,0.5465253,107660.0,107650.0,0.18502892]
[1751291374873,0.5465253,107660.0,107650.0,0.37077152]
[1751291375574,0.5545253,107660.0,107650.0,0.37077152]
[1751291377185,0.1937253,107660.0,107650.0,1.11286712]
[1751291377777,0.1937253,107660.0,107650.0,0.38182025]
[1751291378878,0.1937253,107660.0,107650.0,0.74262025]
[1751291379685,0.1937253,107660.0,107650.0,1.11286712]
[1751291380781,0.1937253,107660.0,107650.0,0.74262025]
[1751291380981,0.1937253,107660.0,107650.0,0.37077152]
[1751291381182,0.5545253,107660.0,107650.0,0.37077152]
[1751291381379,0.5545253,107660.0,107650.0,0.0937]
[1751291381582,0.92477217,107660.0,107650.0,0.0613]
[1751291381879,0.185777,107630.0,107620.0,1.34320618]
[1751291382084,0.18676992,107630.0,107620.0,1.80849223]
[1751291382472,0.18676992,107630.0,107620.0,1.82814616]
[1751291382677,0.18676992,107630.0,107620.0,1.25146616]
[1751291382877,0.18676992,107630.0,107620.0,1.82894616]
[1751291383176,0.19176992,107630.0,107620.0,1.11506616]
[1751291383373,0.19176992,107630.0,107620.0,1.28280616]
[1751291383577,0.19176992,107630.0,107620.0,1.86048616]
[1751291386883,0.19176992,107630.0,107620.0,0.96057186]
[1751291387086,0.55256992,107630.0,107620.0,1.67421186]
[1751291387387,0.58336992,107630.0,107620.0,1.67421186]
[1751291387785,0.95361679,107630.0,107620.0,1.5990809]
[1751291388086,0.94861679,107630.0,107620.0,1.5991609]
[1751291388388,0.95261679,107630.0,107620.0,1.6001609]
[1751291388888,0.70236992,107630.0,107620.0,1.6001609]
[1751291389492,0.70236992,107630.0,107620.0,1.5670609]
[1751291390389,0.88683979,107630.0,107610.0,0.0312]
[1751291390701,0.1858288,107600.0,107590.0,0.39774174]
[1751291390886,0.30676808,107600.0,107590.0,1.4955748]
[1751291391084,0.30726454,107600.0,107590.0,1.4955748]
[1751291391286,0.30726454,107600.0,107590.0,1.50629394]
[1751291391894,0.31126454,107600.0,107590.0,1.49330775]
[1751291392097,0.31126454,107600.0,107590.0,1.41976581]
[1751291392391,0.31126454,107600.0,107590.0,1.41988581]
[1751291393493,0.67206454,107600.0,107590.0,0.10362044]
[1751291393683,0.67206454,107600.0,107590.0,1.08012952]
[1751291393882,0.67206454,107600.0,107590.0,1.09462496]
[1751291394187,0.67206454,107600.0,107590.0,0.38054496]
[1751291394386,0.67206454,107600.0,107590.0,1.09442496]
[1751291394790,0.67206454,107600.0,107590.0,0.51702496]
[1751291395095,0.67206454,107600.0,107590.0,1.09442496]
[1751291396490,0.31126454,107600.0,107590.0,1.09442496]
[1751291396892,0.31126454,107600.0,107590.0,1.82547183]
[1751291397093,0.31126454,107600.0,107590.0,1.81152885]
[1751291397292,0.31126454,107600.0,107590.0,1.4647541]
[1751291397489,0.31126454,107600.0,107590.0,1.8255541]
[1751291397692,0.31126454,107600.0,107590.0,1.09450723]
[1751291398395,0.31126454,107600.0,107590.0,1.09450703]
[1751291398998,0.70226454,107600.0,107590.0,0.33122113]
[1751291399196,1.07251141,107600.0,107590.0,0.02952069]
[1751291399395,1.10391141,107600.0,107590.0,0.60768069]
[1751291399700,1.10391141,107600.0,107590.0,0.02952069]
[1751291399892,1.10391141,107600.0,107590.0,0.66998069]
[1751291400392,0.70226454,107600.0,107590.0,0.85582659]
[1751291400591,0.70226454,107600.0,107590.0,0.66989515]
[1751291400788,1.94863828,107600.0,107590.0,5e-08]
[1751291400996,2.14835828,107600.0,107590.0,5e-08]
[1751291401190,0.19652419,107580.0,107570.0,0.05535703]
[1751291401393,1.75837106,107580.0,107570.0,0.00935703]
[1751291401592,0.1858804,107570.0,107560.0,0.00092967]
[1751291401792,1.1109755,107570.0,107560.0,0.00092967]
[1751291402199,1.11122373,107570.0,107560.0,0.00092967]
[1751291404004,0.74097686,107570.0,107560.0,0.00092967]
[1751291404394,1.11122373,107570.0,107560.0,0.00092967]
[1751291404704,1.61122373,107570.0,107560.0,0.00092967]
[1751291404898,1.24097686,107570.0,107560.0,0.18682737]
[1751291405799,1.61122373,107570.0,107560.0,0.00092967]
[1751291406108,1.11122373,107570.0,107560.0,0.00092967]
[1751291406591,1.11322373,107570.0,107560.0,0.00092967]
[1751291406903,1.12989377,107570.0,107560.0,0.00092967]
[1751291407100,1.62989377,107570.0,107560.0,0.00092967]
[1751291407599,0.1858977,107560.0,107550.0,0.0047946]
[1751291407808,1.15454103,107560.0,107550.0,0.0047946]
[1751291409099,1.65454103,107560.0,107550.0,0.0047946]
[1751291409407,1.65854103,107560.0,107550.0,0.0047946]
[1751291409805,1.67569089,107560.0,107550.0,0.0047946]
[1751291410707,1.67369089,107560.0,107550.0,0.0047946]
[1751291411299,1.27184402,107560.0,107550.0,0.1907097]
[1751291411500,0.87774402,107560.0,107550.0,0.2216097]
[1751291411698,0.84554402,107560.0,107550.0,0.8671697]
[1751291412109,0.84554402,107560.0,107550.0,0.6448097]
[1751291412310,0.84554402,107560.0,107550.0,1.3661297]
[1751291412704,0.34554402,107560.0,107550.0,1.3661297]
[1751291414011,0.70634402,107560.0,107550.0,1.0053297]
[1751291414214,0.73894402,107560.0,107550.0,0.9429297]
[1751291414535,0.77184402,107560.0,107550.0,0.9429297]
[1751291414906,0.77184402,107560.0,107550.0,0.95715727]
[1751291415130,0.77234048,107560.0,107550.0,0.95715727]
[1751291415506,0.37864048,107560.0,107550.0,0.95715727]
[1751291415712,0.34604048,107560.0,107550.0,1.38145727]
[1751291417607,0.16014278,107560.0,107550.0,1.75170414]
[1751291417813,0.34604068,107560.0,107550.0,1.75170414]
[1751291418309,0.34604068,107560.0,107550.0,1.38145727]
[1751291418510,0.34604068,107560.0,107550.0,1.75170414]
[1751291418906,0.34604068,107560.0,107550.0,1.38145727]
[1751291419100,0.34604068,107560.0,107550.0,1.75170414]
[1751291419304,0.16014278,107560.0,107550.0,1.75170414]
[1751291419809,0.16014278,107560.0,107550.0,1.76677648]
[1751291420110,0.02014278,107560.0,107550.0,1.76677648]
[1751291420615,0.2788108,107580.0,107570.0,0.1858806]
[1751291420814,0.3988108,107580.0,107570.0,1.28178817]
[1751291420999,0.3988108,107580.0,107570.0,1.37608817]
[1751291422113,1.12985767,107580.0,107570.0,0.29464817]
[1751291422304,1.20355767,107580.0,107570.0,0.73706757]
[1751291423110,1.20355767,107580.0,107570.0,0.73698757]
[1751291423506,0.3623407,107580.0,107570.0,0.92286817]
[1751291423707,0.3623407,107580.0,107570.0,1.68721504]
[1751291424015,0.38396382,107580.0,107570.0,1.34806817]
[1751291424306,0.13,107580.0,107570.0,2.07911504]
[1751291424508,0.3158633,107580.0,107570.0,2.07911504]
[1751291425508,0.3158633,107580.0,107570.0,1.70886817]
[1751291426103,0.3158633,107580.0,107570.0,0.92194817]
[1751291426309,0.3158633,107580.0,107570.0,1.67812817]
[1751291426514,0.3158633,107580.0,107570.0,1.71092817]
[1751291427014,0.3158633,107580.0,107570.0,0.98804817]
[1751291427209,0.3158633,107580.0,107570.0,2.08141504]
[1751291427416,0.3158633,107580.0,107570.0,2.136842]
[1751291427914,0.3158633,107580.0,107570.0,2.15214881]
[1751291428115,0.13,107580.0,107570.0,1.88190194]
[1751291428309,0.01,107580.0,107570.0,2.43806881]
[1751291430010,0.01,107580.0,107570.0,2.38264185]
[1751291430217,0.01,107580.0,107570.0,2.38256473]
[1751291432517,0.01,107580.0,107570.0,2.45675088]
[1751291432817,0.01,107580.0,107570.0,2.45675856]
[1751291433214,0.01,107580.0,107570.0,2.44236043]
[1751291434008,0.00013224,107580.0,107570.0,2.69236043]
[1751291434413,4e-08,107580.0,107570.0,2.69236043]
[1751291435721,0.001,107600.0,107590.0,0.30119596]
[1751291435915,0.001,107600.0,107590.0,2.26965149]
[1751291436116,0.001,107600.0,107590.0,2.45553149]
[1751291436415,0.001,107600.0,107590.0,2.52965756]
[1751291436814,0.009,107600.0,107590.0,2.53165756]
[1751291437517,0.009,107600.0,107590.0,2.34577756]
[1751291439017,0.2948287,107600.0,107590.0,1.21837069]
[1751291439321,0.2948287,107600.0,107590.0,1.75628203]
[1751291439515,0.3590287,107600.0,107590.0,1.81177853]
[1751291439716,0.3590287,107600.0,107590.0,0.33281853]
[1751291440017,0.3590287,107600.0,107590.0,1.05857853]
[1751291440322,0.3590287,107600.0,107590.0,0.33281853]
[1751291440622,0.3590287,107600.0,107590.0,0.98429246]
[1751291441222,1.09007557,107600.0,107590.0,0.79832646]
[1751291441820,1.09007557,107600.0,107590.0,0.81701611]
[1751291442031,1.09007557,107600.0,107590.0,0.74270996]
[1751291442525,1.09007557,107600.0,107590.0,0.21419511]
[1751291442726,1.09007557,107600.0,107590.0,0.98404111]
[1751291443024,1.09007557,107600.0,107590.0,0.79819511]
[1751291443228,0.7198287,107600.0,107590.0,0.79819511]
[1751291443824,1.09007557,107600.0,107590.0,0.98404111]
[1751291444025,1.09007557,107600.0,107590.0,0.79819511]
[1751291444720,1.09007557,107600.0,107590.0,0.74270996]
[1751291446524,1.09007557,107600.0,107590.0,0.92855596]
[1751291446725,0.7198287,107600.0,107590.0,0.92855596]
[1751291448425,0.7198287,107600.0,107590.0,0.79819511]
[1751291448728,0.7198287,107600.0,107590.0,0.98404111]
[1751291448924,0.7198287,107600.0,107590.0,0.78284515]
[1751291449420,0.7198287,107600.0,107590.0,0.64148515]
[1751291449622,1.09007557,107600.0,107590.0,0.05748515]
[1751291449826,1.27595557,107600.0,107590.0,0.05748515]
[1751291450128,1.52595557,107600.0,107590.0,0.002]
[1751291450629,0.185846,107590.0,107580.0,0.05548515]
[1751291450827,1.10848464,107590.0,107580.0,0.63848515]
[1751291452131,1.10848464,107590.0,107580.0,0.05548515]
[1751291452332,0.74523777,107590.0,107580.0,0.05748515]
[1751291452535,1.11548464,107590.0,107580.0,0.05748515]
[1751291453734,1.14658464,107590.0,107580.0,0.05748515]
[1751291453935,0.77633777,107590.0,107580.0,0.05748515]
[1751291454135,1.14658464,107590.0,107580.0,0.05748515]
[1751291454435,1.14658464,107590.0,107580.0,0.002]
[1751291454628,0.77633777,107590.0,107580.0,0.002]
[1751291454830,1.14658464,107590.0,107580.0,0.002]
[1751291455030,1.14658464,107590.0,107580.0,0.58492]
[1751291457829,1.14658464,107590.0,107580.0,0.002]
[1751291459736,1.16852397,107590.0,107580.0,0.002]
[1751291460331,1.66852397,107590.0,107580.0,0.002]
[1751291461035,1.88441997,107590.0,107580.0,0.002]
[1751291463836,1.6815322,107590.0,107580.0,0.002]
[1751291464038,1.86356533,107590.0,107580.0,0.002]
[1751291464239,2.2338122,107590.0,107580.0,0.002]
[1751291465046,1.7338122,107590.0,107580.0,0.002]
[1751291466043,1.1515322,107590.0,107580.0,0.002]
[1751291466339,0.1858633,107580.0,107570.0,0.0322]
[1751291466529,1.06991017,107580.0,107570.0,0.0322]
[1751291466729,1.10101017,107580.0,107570.0,0.0322]
[1751291466938,1.10101017,107580.0,107570.0,0.2180806]
[1751291467132,0.3699633,107580.0,107570.0,0.2180806]
[1751291467339,0.3058633,107580.0,107570.0,0.2812806]
[1751291468544,0.3058633,107580.0,107570.0,0.6420806]
[1751291469535,0.3128633,107580.0,107570.0,0.69856575]
[1751291469842,0.3128633,107580.0,107570.0,1.01531332]
[1751291470744,0.62961087,107580.0,107570.0,1.18564575]
[1751291470943,0.62961087,107580.0,107570.0,1.27864575]
[1751291471145,0.3128633,107580.0,107570.0,1.27864575]
[1751291471535,0.3128633,107580.0,107570.0,0.91784575]
[1751291471936,0.62961087,107580.0,107570.0,0.91784575]
[1751291472332,0.99041087,107580.0,107570.0,0.91784575]
[1751291472537,0.99041087,107580.0,107570.0,0.8623606]
[1751291473238,0.99041087,107580.0,107570.0,1.0024806]
[1751291473446,1.02041087,107580.0,107570.0,1.07666675]
[1751291474541,1.02041087,107580.0,107570.0,0.49390675]
[1751291474744,1.02041087,107580.0,107570.0,0.23384]
[1751291474946,1.05311087,107580.0,107570.0,0.80930032]
[1751291475448,1.05311087,107580.0,107570.0,0.05666032]
[1751291476145,1.08516405,107580.0,107570.0,0.001]
[1751291476349,1.06319375,107580.0,107570.0,0.05666032]
[1751291476644,1.05311087,107580.0,107570.0,0.05666032]
[1751291477946,1.10772763,107580.0,107570.0,0.05666032]
[1751291478547,1.12967712,107580.0,107570.0,0.001]
[1751291479347,1.12967712,107580.0,107570.0,0.01546788]
[1751291479743,1.12967712,107580.0,107570.0,8e-08]
[1751291480045,1.12967712,107580.0,107560.0,0.08596032]
[1751291480046,0.1858806,107570.0,107560.0,0.0096604]
[1751291480237,0.1858806,107570.0,107550.0,0.0047946]
[1751291480238,0.1858979,107560.0,107550.0,0.0047946]
[1751291480441,1.10186223,107560.0,107550.0,0.0047946]
[1751291481738,1.124023,107560.0,107550.0,0.0047946]
[1751291483351,1.624023,107560.0,107550.0,0.0047946]
[1751291483851,1.664023,107560.0,107550.0,0.0047946]
[1751291484054,1.60186223,107560.0,107550.0,0.0047946]
[1751291484244,1.62398238,107560.0,107550.0,0.0047946]
[1751291485343,1.62598238,107560.0,107550.0,0.0097946]
[1751291486146,1.68598238,107560.0,107550.0,0.0097946]
[1751291486351,2.26886238,107560.0,107550.0,0.0097946]
[1751291487053,2.27886238,107560.0,107550.0,0.0097946]
[1751291487643,1.69598238,107560.0,107550.0,0.0097946]
[1751291487852,2.20890238,107560.0,107550.0,0.0097946]
[1751291488257,1.70890238,107560.0,107550.0,0.0097946]
[1751291490255,1.71890238,107560.0,107550.0,0.0097946]
[1751291490458,1.70890238,107560.0,107550.0,0.0097946]
[1751291491549,1.79890238,107560.0,107550.0,0.0097946]
[1751291491954,1.77678223,107560.0,107550.0,0.02432648]
[1751291493259,1.77678223,107560.0,107550.0,0.02432662]
[1751291493459,1.79894385,107560.0,107550.0,0.02432662]
[1751291493758,1.77678223,107560.0,107550.0,0.02432634]
[1751291494058,1.19386223,107560.0,107550.0,0.02432634]
[1751291494261,0.7324979,107560.0,107550.0,0.02432634]
[1751291494556,1.60386223,107560.0,107550.0,0.02432634]
[1751291495550,1.62386223,107560.0,107550.0,0.02432634]
[1751291496056,1.12386223,107560.0,107550.0,0.02432634]
[1751291497057,1.10386223,107560.0,107550.0,0.02432634]
[1751291498458,1.10386223,107560.0,107550.0,0.21024284]
[1751291498759,0.36247816,107560.0,107550.0,0.60164284]
[1751291499056,0.36247816,107560.0,107550.0,1.74115917]
[1751291499057,0.122,107560.0,107550.0,1.74115917]
[1751291499249,0.002,107560.0,107550.0,1.77305917]
[1751291499452,0.1858825,107570.0,107560.0,0.1858991]
[1751291499650,0.1858825,107570.0,107560.0,1.13571517]
[1751291499853,0.3058825,107570.0,107560.0,1.08114709]
[1751291500054,0.3058825,107570.0,107560.0,1.13674202]
[1751291500860,0.3058825,107570.0,107560.0,1.12221028]
[1751291501158,0.3058825,107570.0,107560.0,1.13673942]
[1751291501361,0.3108825,107570.0,107560.0,1.13773942]
[1751291502059,0.3108825,107570.0,107560.0,0.82094317]
[1751291502860,0.3108825,107570.0,107560.0,0.85284317]
[1751291504763,0.3108825,107570.0,107560.0,0.79724824]
[1751291504963,0.3108825,107570.0,107560.0,1.16850636]
[1751291506055,0.3108825,107570.0,107560.0,1.22410129]
[1751291506259,0.3108825,107570.0,107560.0,0.85284317]
[1751291507063,0.3108825,107570.0,107560.0,1.22410129]
[1751291507356,0.125,107570.0,107560.0,1.22410129]
[1751291507565,0.310882,107570.0,107560.0,1.08418129]
[1751291507758,0.310882,107570.0,107560.0,1.80566129]
[1751291508467,0.310882,107570.0,107560.0,1.75006636]
[1751291508965,0.310882,107570.0,107560.0,1.82425251]
[1751291509267,0.310882,107570.0,107560.0,1.75006636]
[1751291509566,0.310882,107570.0,107560.0,1.84279905]
[1751291510162,0.310882,107570.0,107560.0,1.75006636]
[1751291510665,0.310882,107570.0,107560.0,1.38926636]
[1751291510860,0.310882,107570.0,107560.0,0.51059163]
[1751291511062,0.310882,107570.0,107560.0,1.02791163]
[1751291511265,0.376582,107570.0,107560.0,1.02791163]
[1751291511972,0.376582,107570.0,107560.0,1.01338249]
[1751291512173,0.376582,107570.0,107560.0,0.29238249]
[1751291512373,0.376582,107570.0,107560.0,1.01350249]
[1751291512666,0.376582,107570.0,107560.0,1.16432061]
[1751291512667,0.310882,107570.0,107560.0,1.16432061]
[1751291512873,0.310882,107570.0,107560.0,1.04380249]
[1751291513267,0.310882,107570.0,107560.0,0.99492968]
[1751291513469,0.374982,107570.0,107560.0,0.99492968]
[1751291515178,0.374982,107570.0,107560.0,1.01350249]
[1751291515371,0.342382,107570.0,107560.0,1.37430249]
[1751291515667,0.342382,107570.0,107560.0,1.40480249]
[1751291516373,0.3423819,107570.0,107560.0,1.77606061]
[1751291516573,0.3108819,107570.0,107560.0,1.77606061]
[1751291516873,0.3108819,107570.0,107560.0,1.04376249]
[1751291517075,0.3108819,107570.0,107560.0,1.77582061]
[1751291517771,0.005,107570.0,107560.0,1.70163722]
[1751291517969,0.015,107570.0,107560.0,2.24469118]
[1751291518281,0.015,107570.0,107560.0,2.83141118]
[1751291518769,0.015,107570.0,107560.0,2.97429322]
[1751291518970,0.00177906,107590.0,107580.0,0.20126624]
[1751291519174,0.00177906,107590.0,107580.0,2.18671847]
[1751291519370,0.00177906,107590.0,107580.0,2.641133]
[1751291519569,0.001,107600.0,107590.0,0.1858473]
[1751291519773,0.031,107600.0,107590.0,1.05657104]
[1751291520073,0.031,107600.0,107590.0,0.98250542]
[1751291520375,1.01135401,107630.0,107620.0,0.1857955]
[1751291520376,0.2332301,107630.0,107620.0,0.1857955]
[1751291520571,0.3632301,107630.0,107620.0,1.65307564]
[1751291520879,0.3632301,107630.0,107620.0,0.92101752]
[1751291521069,0.4258301,107630.0,107620.0,1.28181752]
[1751291521270,0.1614,107630.0,107620.0,1.80382094]
[1751291521470,0.131,107630.0,107620.0,1.80382094]
[1751291521677,0.131,107630.0,107620.0,2.08965294]
[1751291521868,0.001,107630.0,107620.0,2.08965294]
[1751291522069,0.001,107630.0,107620.0,2.16362863]
[1751291522266,0.01685712,107650.0,107640.0,0.1857609]
[1751291522474,0.11,107650.0,107640.0,2.99883902]
[1751291522674,0.001,107660.0,107650.0,0.1857437]
[1751291522981,0.04913997,107660.0,107650.0,1.08189474]
[1751291523872,0.04913997,107660.0,107650.0,1.09226974]